Workbook

Sheet NOMBRE
A1: DATOS DEL ESTABLECIMIENTO | C1: CÓDIGOS
A2: NOMBRE DE COMUNA | I2: =IF(OR(NOMBRE!C2="",NOMBRE!D2="",NOMBRE!E2="",NOMBRE!F2="",NOMBRE!G2=""),"Falta Cód. Com.","") -> Falta Cód. Com. | AF2: =IF(I2>"",1,0) -> 1
A3: NOMBRE ESTABLECIMIENTO/ESTRATEGIA | I3: =IF(OR(NOMBRE!C3="",NOMBRE!D3="",NOMBRE!E3="",NOMBRE!F3="",NOMBRE!G3="",NOMBRE!H3=""),"Falta Cód. Est.","") -> Falta Cód. Est. | AF3: =IF(I3>"",1,0) -> 1
A4: TIPO DE ESTABLECIMIENTO/ESTRATEGIA | I4: =IF(OR(NOMBRE!B4=""),"Falta Tipo. Est.","") -> Falta Tipo. Est. | AF4: =IF(I4>"",1,0) -> 1
A5: DEPENDENCIA | I5: =IF(OR(NOMBRE!B5=""),"Falta Dependencia. Est.","") -> Falta Dependencia. Est. | AF5: =IF(I5>"",1,0) -> 1
A6: MES: | I6: =IF(OR(NOMBRE!C6="",NOMBRE!D6=""),"Falta Cód. Mes.","") -> Falta Cód. Mes. | AF6: =IF(I6>"",1,0) -> 1
A7: AÑO: | B7: 2017 | AF7: =SUM(AF2:AF6) -> 5
A9: Versión 1.6: MAYO 2017
A11: Director Servicio de Salud o Director Establecimiento | Z11: ENERO | AA11: Establecimiento de Mayor Complejidad (EMAYC) | AB11: SERVICIO DE SALUD
A12: Jefe de Estadisticas | Z12: FEBRERO | AA12: Establecimiento de Mediana Complejidad (EMEDC) | AB12: MUNICIPAL
Z13: MARZO | AA13: Establecimiento de Menor Complejidad (EMENC) | AB13: OTRA INSTITUCIÓN (Delegado)
A14: MINSAL - DEIS | Z14: ABRIL | AA14: Centros de Diagnóstico Terapéutico (CDT)
Z15: MAYO | AA15: Centro de Referencia de Salud (CRS)
Z16: JUNIO | AA16: Consultorio General Urbano (CGU)
B17: SERIE BS | Z17: JULIO | AA17: Consultorio General Urbano (CGU) - CESFAM
Z18: AGOSTO | AA18: Consultorio General Urbano(CGU) con SAPU/SUR/SAR
Z19: SEPTIEMBRE | AA19: Consultorio General Urbano (CGU) - CESFAM con SAPU/SAR
Z20: OCTUBRE | AA20: Consultorio General Rural (CGR)
Z21: NOVIEMBRE | AA21: Consultorio General Rural (CGR) - CESFAM
Z22: DICIEMBRE | AA22: Consultorio General Rural (CGR) con SAPU/SUR/SAR
AA23: Consultorio General Rural (CGR) - CESFAM con SAPU/SUR/SAR
AA24: Posta de Salud Rural (PSR)
AA25: Centro Comunitario de Salud Familiar (CECOF)
AA26: Consultorio de Salud Mental (COSAM)
AA27: Programa de Reparación y Atención Integral de Salud (PRAIS)
AA28: Centro de Atención Funcionarios (CAF)
AA29: Clínica Dental Móvil (CDM)
AA30: Dirección Servicio de Salud (DSS)
AA31: Servicio de Atención Primaria de Urgencia (SAPU)
AA32: Servicio de Atención Primaria de Urgencia Alta Resolución (SAR)
AA33: Laboratorio Clínico o Dental
AA34: Servicio de Atención Primaria de Urgencia Dental (SAPUDENT)
AA35: Centro de Rehabilitación (CR)
AA36: Hospital de Campaña

Sheet B
C1: MODALIDAD | D1: TOTAL | E1: ACTIVIDADES | I1: INTERVENCIONES QUIRÚRGICAS | P1: INTERVENCIONES QUIRÚRGICAS MAYORES NO AMBULATORIAS ELECTIVAS | S1: INTERVENCIONES QUIRÚRGICAS MAYORES AMBULATORIAS ELECTIVA | V1: INTERVENCIONES QUIRÚRGICAS MAYORES AMBULATORIAS URGENCIA | Y1: INTERVENCIONES QUIRÚRGICAS MAYORES NO AMBULATORIAS URGENCIA | AB1: PROCEDENCIA | AE1: PRODUCCION INTRA HOSPITAL | AH1: OPERATIVO | AI1: COMPRAS REALIZADAS | AK1: VENTAS DE SERVICIOS | AL1: TIPO DE ACTIVIDAD | AM1: TRANSFERENCIA 2017 | AN1: TOTAL FACTURADO
A2: CODIGO | B2: GLOSA | E2: TOTAL BENEFI-CIARIOS | F2: BENEFICIARIOS | H2: NO BENEFI-CIARIOS | I2: TOTAL BENEFICIARIOS | J2: PRINCIPAL | M2: SECUNDARIA | S2: < 15 AÑOS | V2: < 15 AÑOS | Y2: < 15 AÑOS
F3: MAI | G3: MLE | J3: MAI | K3: MLE | L3: NO BENEFI-CIARIO | M3: MAI | N3: MLE | O3: NO BENEFI-CIARIO | P3: TOTAL | Q3: < 15 AÑOS | R3: 15 AÑOS Y MÁS | S3: TOTAL | T3: < 15 AÑOS | U3: 15 AÑOS Y MÁS | V3: TOTAL | W3: < 15 AÑOS | X3: 15 AÑOS Y MÁS | Y3: TOTAL | Z3: < 15 AÑOS | AA3: 15 AÑOS Y MÁS | AB3: ATENCION CERRADA | AC3: ATENCION ABIERTA | AD3: EMERGENCIA | AE3: POR HONO- RARIOS | AF3: POR CONVENIOS | AG3: POR CONSULTO- RES DE LLAMADA | AI3: AL SISTEMA | AJ3: EXTRA-SISTEMA
B4: CONSULTAS Y ATENCION MEDICA
A5: 0101101 | B5: Consulta o control médico integral en atención primaria | C5: MAI | D5: =SUM(E5+H5) -> 0 | E5: =SUM(F5:G5) -> 0 | AL5: Aten | AM5: 4,590 | AN5: =AM5*F5 -> 0
A6: 0101102 | B6: Consulta o control médico integral en especialidades (Hosp. Mediana Complejidad) | C6: MAI | D6: =SUM(E6+H6) -> 0 | E6: =SUM(F6:G6) -> 0 | AL6: Aten | AM6: 5,780 | AN6: =AM6*F6 -> 0
A7: 0101103 | B7: Consulta médica integral en servicio de urgencia (Hosp. Alta Complejidad) | C7: MAI | D7: 0 | E7: 0 | AL7: Cons | AM7: 12,390 | AN7: =AM7*F7 -> 0
A8: 0101104 | B8: Consulta médica integral en C.R.S. | C8: MAI | D8: 0 | E8: 0 | AL8: Cons | AM8: 7,400 | AN8: =AM8*F8 -> 0
A9: 0101105 | B9: Consulta médica integral en servicio de urgencia (Hosp. Mediana Complejidad) | C9: MAI | D9: 0 | E9: 0 | AL9: Cons | AM9: 8,120 | AN9: =AM9*F9 -> 0
A10: 0101106 | B10: Asistencia de cardiólogo a cirugías no cardíacas | C10: MAI | D10: 0 | E10: 0 | AL10: Aten | AM10: 15,530 | AN10: =AM10*F10 -> 0
A11: 0101107 | B11: Atención médica del recién nacido | C11: MAI | D11: 0 | E11: 0 | AL11: Aten | AM11: 15,530 | AN11: 0
A12: 0101108 | B12: Consulta integral de especialidades en Cirugía, Ginecología y Obstetricia, Ortopedia y Traumatología (en CDT) | C12: MAI | D12: 0 | E12: 0 | AL12: Cons | AM12: 6,260 | AN12: 0
A13: 0101109 | B13: Consulta integral de especialidades en Urología, Otorrinolaringología, Medicina Fisica y Rehabilitación, Dermatología, Pediatría y Subespecialidades (en CDT) | C13: MAI | D13: 0 | E13: 0 | AL13: Cons | AM13: 7,510 | AN13: 0
A14: 0101110 | B14: Consulta integral de especialidades en Medicina Interna y Subespecialidades, Oftalmología, Neurología, Oncología (en CDT) | C14: MAI | D14: 0 | E14: 0 | AL14: Cons | AM14: 9,310 | AN14: 0
A15: 0101111 | B15: Consulta integral de especialidades en Cirugía, Ginecología y Obstetricia, Ortopedia y Traumatología (Hosp. Alta Complejidad) | C15: MAI | D15: 0 | E15: 0 | AL15: Cons | AM15: 6,260 | AN15: 0
A16: 0101112 | B16: Consulta integral de especialidades en Urología, Otorrinolaringología, Medicina Física y Rehabilitación, Dermatología, Pediatría y Subespecialidades (Hosp. Alta Complejidad) | C16: MAI | D16: 0 | E16: 0 | AL16: Cons | AM16: 7,510 | AN16: 0
A17: 0101113 | B17: Consulta integral de especialidades en Medicina Interna y Subespecialidades, Oftalmología, Neurología, Oncología (Hosp. Alta Complejidad) | C17: MAI | D17: 0 | E17: 0 | AL17: Cons | AM17: 9,310 | AN17: 0
B18: TOTAL ARANCEL MAI | D18: =SUM(D5:D17) -> 0 | E18: =SUM(E5:E17) -> 0 | F18: 0 | G18: 0 | H18: 0 | AB18: 0 | AC18: 0 | AD18: 0 | AE18: 0 | AF18: 0 | AG18: 0 | AH18: 0 | AI18: 0 | AJ18: 0 | AK18: 0 | AL18: 0 | AM18: 115,500 | AN18: 0
A19: 0101001 | B19: Consulta médica general | C19: MLE | D19: =SUM(E19+H19) -> 0 | E19: =SUM(F19:G19) -> 0 | AL19: Cons
B20: Consultas de urgencia en Hospitales de baja complejidad | D20: =SUM(E20+H20) -> 0 | E20: =SUM(F20:G20) -> 0
B21: Consultas de especialidad en hospitales de baja complejidad y establecimientos de APS | D21: =SUM(E21+H21) -> 0 | E21: =SUM(F21:G21) -> 0
B22: Otras consulta médica de especialidades | D22: =SUM(E22+H22) -> 0 | E22: =SUM(F22:G22) -> 0 | AL22: Cons
B23: Consulta médica de especialidad en servicio de urgencia | D23: =SUM(E23+H23) -> 0 | E23: =SUM(F23:G23) -> 0 | AL23: Cons
B24: TOTAL ARANCEL MLE Y NO ARANCELADO | D24: =SUM(D19:D23) -> 0 | E24: =SUM(E19:E23) -> 0 | F24: 0 | G24: 0 | H24: 0 | AB24: 0 | AC24: 0 | AD24: 0 | AE24: 0 | AF24: 0 | AG24: 0 | AH24: 0 | AI24: 0 | AJ24: 0 | AK24: 0 | AL24: 0
B25: TOTAL PRODUCCION | D25: =SUM(D18,D24) -> 0 | E25: =SUM(E18,E24) -> 0 | F25: 0 | G25: 0 | H25: 0 | AB25: 0 | AC25: 0 | AD25: 0 | AE25: 0 | AF25: 0 | AG25: 0 | AH25: 0 | AI25: 0 | AJ25: 0 | AK25: 0 | AL25: 0 | AM25: 115,500 | AN25: 0
B26: CONSULTAS POR OTROS PROFESIONALES DE LA SALUD
A27: 0102001 | B27: Consulta o control por enfermera, matrona o nutricionista | C27: MAI | D27: 0 | E27: 0 | AL27: Aten | AM27: 1,220 | AN27: =AM27*F27 -> 0
A28: 0102002 | B28: Control de salud niño con EDP por enfermera | C28: MAI | D28: 0 | E28: 0 | AL28: Ctrl | AM28: 2,090 | AN28: 0
A29: 0102003 | B29: Consulta o control por auxiliar de enfermería | C29: MAI | D29: 0 | E29: 0 | AL29: Aten | AM29: 670 | AN29: 0
A30: 0102005 | B30: Consulta por fonoaudiólogo | C30: MAI | D30: 0 | E30: 0 | AL30: Cons | AM30: 1,660 | AN30: 0
A31: 0102006 | B31: Atención kinesiológica integral ambulatoria | C31: MAI | D31: 0 | E31: 0 | AL31: Aten | AM31: 1,340 | AN31: 0
A32: 0102007 | B32: Atención integral por terapeuta ocupacional | C32: MAI | D32: 0 | E32: 0 | AL32: Aten | AM32: 1,220 | AN32: 0
B33: TOTAL ARANCEL MAI | D33: =SUM(D27:D32) -> 0 | E33: =SUM(E27:E32) -> 0 | F33: =SUM(F27:F32) -> 0 | G33: =SUM(G27:G32) -> 0 | H33: =SUM(H27:H32) -> 0 | AB33: =SUM(AB27:AB32) -> 0 | AC33: 0 | AD33: 0 | AE33: 0 | AF33: 0 | AG33: 0 | AH33: 0 | AI33: 0 | AJ33: 0 | AK33: 0 | AM33: =SUM(AM27:AM32) -> 8,200 | AN33: =SUM(AN27:AN32) -> 0
B34: Consulta por otros profesionales | D34: 0 | E34: 0 | AL34: Cons
B35: Consultas/ Controles de Especialidades Odontológica | D35: 0 | E35: 0 | AL35: Aten
B36: Consultas de morbilidad odontológica | D36: 0 | E36: 0 | AL36: Cons
B37: Consultas de urgencia odontológica | D37: 0 | E37: 0 | AL37: Cons
B38: TOTAL ARANCEL MLE Y NO ARANCELADO | D38: =SUM(D34:D37) -> 0 | E38: =SUM(E34:E37) -> 0 | F38: =SUM(F34:F37) -> 0 | G38: =SUM(G34:G37) -> 0 | H38: =SUM(H34:H37) -> 0 | AB38: =SUM(AB34:AB37) -> 0 | AC38: 0 | AD38: 0 | AE38: 0 | AF38: 0 | AG38: 0 | AH38: 0 | AI38: 0 | AJ38: 0 | AK38: 0
B39: TOTAL PRODUCCION | D39: =SUM(D33+D38) -> 0 | E39: =SUM(E33+E38) -> 0 | F39: =SUM(F33+F38) -> 0 | G39: =SUM(G33+G38) -> 0 | H39: =SUM(H33+H38) -> 0 | AB39: =SUM(AB33+AB38) -> 0 | AC39: 0 | AD39: 0 | AE39: 0 | AF39: 0 | AG39: 0 | AH39: 0 | AI39: 0 | AJ39: 0 | AK39: 0 | AM39: =SUM(AM33+AM38) -> 8,200 | AN39: =SUM(AN33+AN38) -> 0
B40: EDUCACION DE GRUPO
A41: 0103001 | B41: Educación de grupo por médico | C41: MAI | D41: 0 | E41: 0 | AL41: Educ | AM41: 4,010 | AN41: =AM41*F41 -> 0
A42: 0103002 | B42: Educación de grupo por enfermera, matrona o nutricionista | C42: MAI | D42: 0 | E42: 0 | AL42: Educ | AM42: 2,200 | AN42: =AM42*F42 -> 0
A43: 0103003 | B43: Educación de grupo por asistente social | C43: MAI | D43: 0 | E43: 0 | AL43: Educ | AM43: 2,200 | AN43: =AM43*F43 -> 0
A44: 0103004 | B44: Educación de grupo por auxiliar de enfermería | C44: MAI | D44: 0 | E44: 0 | AL44: Educ | AM44: 670 | AN44: =AM44*F44 -> 0
B45: TOTAL ARANCEL MAI | D45: =SUM(D41:D44) -> 0 | E45: =SUM(E41:E44) -> 0 | F45: =SUM(F41:F44) -> 0 | G45: =SUM(G41:G44) -> 0 | H45: =SUM(H41:H44) -> 0 | AB45: =SUM(AB41:AB44) -> 0 | AC45: 0 | AD45: 0 | AE45: 0 | AF45: 0 | AG45: 0 | AH45: 0 | AI45: 0 | AJ45: 0 | AK45: 0 | AM45: =SUM(AM41:AM44) -> 9,080 | AN45: =SUM(AN41:AN44) -> 0
B46: Educación de grupo por otro integrante del equipo de salud | D46: 0 | E46: 0 | AL46: Educ
B47: TOTAL ARANCEL MLE Y NO ARANCELADO | D47: =D46 -> 0 | E47: =E46 -> 0 | F47: =F46 -> 0 | G47: =G46 -> 0 | H47: =H46 -> 0 | AB47: =AB46 -> 0 | AC47: 0 | AD47: 0 | AE47: 0 | AF47: 0 | AG47: 0 | AH47: 0 | AI47: 0 | AJ47: 0 | AK47: 0
B48: TOTAL PRODUCCION | D48: =SUM(D45+D47) -> 0 | E48: =SUM(E45+E47) -> 0 | F48: =SUM(F45+F47) -> 0 | G48: =SUM(G45+G47) -> 0 | H48: =SUM(H45+H47) -> 0 | AB48: =SUM(AB45+AB47) -> 0 | AC48: 0 | AD48: 0 | AE48: 0 | AF48: 0 | AG48: 0 | AH48: 0 | AI48: 0 | AJ48: 0 | AK48: 0 | AM48: =SUM(AM45+AM47) -> 9,080 | AN48: =SUM(AN45+AN47) -> 0
B49: VISITAS DOMICILIARIAS
A50: 0104001 | B50: Visita a domicilio por enfermera, matrona o nutricionista | C50: MAI | D50: 0 | E50: 0 | AL50: Vdom | AM50: 1,910 | AN50: =AM50*F50 -> 0
A51: 0104002 | B51: Visita a domicilio por asistente social | C51: MAI | D51: 0 | E51: 0 | AL51: Vdom | AM51: 1,910 | AN51: =AM51*F51 -> 0
A52: 0104003 | B52: Visita a domicilio por auxiliar de enfermería | C52: MAI | D52: 0 | E52: 0 | AL52: Vdom | AM52: 1,100 | AN52: =AM52*F52 -> 0
B53: TOTAL ARANCEL MAI | D53: =SUM(D50:D52) -> 0 | E53: =SUM(E50:E52) -> 0 | F53: =SUM(F50:F52) -> 0 | G53: =SUM(G50:G52) -> 0 | H53: =SUM(H50:H52) -> 0 | AB53: =SUM(AB50:AB52) -> 0 | AC53: 0 | AD53: 0 | AE53: =SUM(AE50:AE52) -> 0 | AF53: 0 | AG53: 0 | AH53: 0 | AI53: 0 | AJ53: 0 | AK53: 0 | AM53: =SUM(AM50:AM52) -> 4,920 | AN53: =SUM(AN50:AN52) -> 0
B54: Visita a domicilio por otro integrante del equipo de salud | D54: 0 | E54: 0 | AL54: Vdom
B55: Visita domiciaria por otro profesional y técnicos paramédico | D55: 0 | E55: 0 | AL55: Vdom
B56: TOTAL ARANCEL MLE Y NO ARANCELADO | D56: =SUM(D54:D55) -> 0 | E56: =SUM(E54:E55) -> 0 | F56: =SUM(F54:F55) -> 0 | G56: =SUM(G54:G55) -> 0 | H56: =SUM(H54:H55) -> 0 | AB56: =SUM(AB54:AB55) -> 0 | AC56: 0 | AD56: 0 | AE56: 0 | AF56: 0 | AG56: 0 | AH56: 0 | AI56: 0 | AJ56: 0 | AK56: 0
B57: TOTAL PRODUCCION | D57: =SUM(D53+D56) -> 0 | E57: =SUM(E53+E56) -> 0 | F57: =SUM(F53+F56) -> 0 | G57: =SUM(G53+G56) -> 0 | H57: =SUM(H53+H56) -> 0 | AB57: =SUM(AB53+AB56) -> 0 | AC57: 0 | AD57: 0 | AE57: 0 | AF57: 0 | AG57: 0 | AH57: 0 | AI57: 0 | AJ57: 0 | AK57: 0 | AM57: =SUM(AM53+AM56) -> 4,920 | AN57: =SUM(AN53+AN56) -> 0
B58: VACUNACION Y DESPARASITACION
A59: 0105001 | B59: Vacunaciones (sólo considera administración) | C59: MAI | D59: 0 | E59: 0 | AL59: PNI | AM59: 830 | AN59: =AM59*F59 -> 0
A60: 0105002 | B60: Desparasitación sarna (cada persona) | C60: MAI | D60: 0 | E60: 0 | AL60: PNI | AM60: 100 | AN60: =AM60*F60 -> 0
A61: 0105003 | B61: Desparasitación pediculosis (cada persona) | C61: MAI | D61: 0 | E61: 0 | AL61: PNI | AM61: 100 | AN61: =AM61*F61 -> 0
B62: TOTAL | D62: =SUM(D59:D61) -> 0 | E62: =SUM(E59:E61) -> 0 | F62: =SUM(F59:F61) -> 0 | G62: =SUM(G59:G61) -> 0 | H62: =SUM(H59:H61) -> 0 | AB62: =SUM(AB59:AB61) -> 0 | AC62: 0 | AD62: 0 | AE62: 0 | AF62: 0 | AG62: 0 | AH62: 0 | AI62: 0 | AJ62: 0 | AK62: 0 | AM62: =SUM(AM59:AM61) -> 1,030 | AN62: =SUM(AN59:AN61) -> 0
B63: MISCELANEOS
A64: 0106002 | B64: Curación simple ambulatoria | C64: MAI | D64: 0 | E64: 0 | AL64: Proc | AM64: 730 | AN64: =AM64*F64 -> 0
A65: 0106005 | B65: Autocontrol pacientes Diabetico insulino dependiente (D.I.D. mensual) | C65: MAI | D65: 0 | E65: 0 | AL65: Proc | AM65: 16,550 | AN65: =AM65*F65 -> 0
A66: 0106006 | B66: Oxigenoterapia domiciliaria (pacientes oxígeno dependientes) | C66: MAI | D66: 0 | E66: 0 | AL66: Proc | AM66: 38,010 | AN66: =AM66*F66 -> 0
A67: 0106004 | B67: Despacho de recetas a crónicos | C67: MAI | D67: 0 | E67: 0 | AL67: Proc | AM67: 2,200 | AN67: =AM67*F67 -> 0
A68: 0106001 | B68: Abreu | C68: MAI | D68: 0 | E68: 0 | AL68: Proc | AM68: 1,480 | AN68: =AM68*F68 -> 0
B69: TOTAL ARANCEL MAI | D69: =SUM(D64:D68) -> 0 | E69: =SUM(E64:E68) -> 0 | F69: =SUM(F64:F68) -> 0 | G69: =SUM(G64:G68) -> 0 | H69: =SUM(H64:H68) -> 0 | AB69: =SUM(AB64:AB68) -> 0 | AC69: 0 | AD69: 0 | AE69: 0 | AF69: 0 | AG69: 0 | AH69: 0 | AI69: 0 | AJ69: 0 | AK69: 0 | AM69: =SUM(AM64:AM67) -> 57,490 | AN69: =SUM(AN64:AN67) -> 0
B70: Procedimientos de podología | D70: 0 | E70: 0 | AL70: Proc
B71: TOTAL ARANCEL MLE Y NO ARANCELADO | D71: =D70 -> 0 | E71: =E70 -> 0 | F71: =F70 -> 0 | G71: =G70 -> 0 | H71: =H70 -> 0 | AB71: =AB70 -> 0 | AC71: 0 | AD71: 0 | AE71: 0 | AF71: 0 | AG71: 0 | AH71: 0 | AI71: 0 | AJ71: 0 | AK71: 0
B72: TOTAL PRODUCCION | D72: =SUM(D69+D71) -> 0 | E72: =SUM(E69+E71) -> 0 | F72: =SUM(F69+F71) -> 0 | G72: =SUM(G69+G71) -> 0 | H72: =SUM(H69+H71) -> 0 | AB72: =SUM(AB69+AB71) -> 0 | AC72: 0 | AD72: 0 | AE72: 0 | AF72: 0 | AG72: 0 | AH72: 0 | AI72: 0 | AJ72: =SUM(AJ69+AJ71) -> 0 | AK72: =SUM(AK69+AK71) -> 0 | AM72: =SUM(AM69+AM71) -> 57,490 | AN72: =SUM(AN69+AN71) -> 0
B73: OTRAS MISCELANEOS
A74: 5099048 | B74: Hemoglucotest instantáneo | D74: =SUM(E74+H74) -> 0 | E74: =SUM(F74:G74) -> 0 | AL74: Proc
A75: 5099008 | B75: Actividad Básica | D75: 0 | E75: 0 | AL75: Proc
A76: 5099009 | B76: Actividad Terapeutica | D76: 0 | E76: 0 | AL76: Proc
A77: 5099010 | B77: Evaluacion Actividad | D77: 0 | E77: 0 | AL77: Proc
A78: 5099011 | B78: Evaluacion prevocacional | D78: 0 | E78: 0 | AL78: Proc
A79: 5099063 | B79: Evaluación cognitiva | D79: 0 | E79: 0 | AL79: Proc
A80: 5099064 | B80: Estimulación cognitiva | D80: 0 | E80: 0 | AL80: Proc
A81: 5099111 | B81: Curacion avanzada de herida | D81: 0 | E81: 0 | AL81: Proc
A82: 0102701 | B82: Evaluación Motriz Funcional | D82: 0 | E82: 0 | AL82: Proc
A83: 0102702 | B83: Evaluación cognitiva-perceptual | D83: 0 | E83: 0 | AL83: Proc
A84: 0102703 | B84: Evaluación independencia en actividades de la vida diaria | D84: 0 | E84: 0 | AL84: Proc
A85: 0102704 | B85: Evaluación barreras arquitectónicas | D85: 0 | E85: 0 | AL85: Proc
A86: 0102705 | B86: Evaluación puesto de trabajo | D86: 0 | E86: 0 | AL86: Proc
A87: 0102706 | B87: Evaluación del desarrollo Psicomotor | D87: 0 | E87: 0 | AL87: Proc
A88: 0102707 | B88: Reentrenamiento de las funciones cognitiva-perceptual | D88: 0 | E88: 0 | AL88: Proc
A89: 0102708 | B89: Reentrenamiento de las actividades de la vida diaria | D89: 0 | E89: 0 | AL89: Proc
A90: 0102709 | B90: Reentrenamiento laboral | D90: 0 | E90: 0 | AL90: Proc
B91: Comité junta médica | D91: 0 | E91: 0 | AL91: Proc
B92: Consultorías médicas de especialidades | D92: 0 | E92: 0 | AL92: Proc
B93: Consultorías odontólogos | D93: 0 | E93: 0 | AL93: Proc
B94: Consejerias Individual por profesional de salud | D94: 0 | E94: 0 | AL94: Proc
B95: Consejerias Familiar por profesionales de salud | D95: 0 | E95: 0 | AL95: Proc
B96: Instalación de clips en lesiones sangrantes | D96: 0 | E96: 0 | AL96: Proc
B97: Instalación vendaje compresivo (Coban) | D97: 0 | E97: 0 | AL97: Proc
B98: TOTAL | D98: =SUM(D74:D97) -> 0 | E98: =SUM(E74:E97) -> 0 | F98: =SUM(F74:F97) -> 0 | G98: =SUM(G74:G97) -> 0 | H98: =SUM(H74:H97) -> 0 | AB98: =SUM(AB74:AB97) -> 0 | AC98: 0 | AD98: 0 | AE98: 0 | AF98: 0 | AG98: 0 | AH98: 0 | AI98: 0 | AJ98: 0 | AK98: 0
B99: Trasplantes
B100: Estudio receptor donante cadáver | D100: 0 | E100: =SUM(F100:G100) -> 0 | AL100: Act
B101: Estudio receptor donante vivo | D101: 0 | E101: 0 | AL101: Act
B102: Estudio receptores corazón-pulmón | D102: 0 | E102: 0 | AL102: Act
B103: Estudio pacientes trasplante medula ósea | D103: 0 | E103: 0 | AL103: Act
B104: Trasplante de medula autólogo | D104: 0 | E104: 0 | AL104: Proc
B105: Trasplante de medula alógeno | D105: 0 | E105: 0 | AL105: Proc
B106: Trasplante medula de cordón | D106: 0 | E106: 0 | AL106: Proc
B107: Trasplante medula aploidentico | D107: 0 | E107: 0 | AL107: Proc
B108: Trasplante de córnea (incluye procuramiento y seguimiento por un año) | D108: 0 | E108: 0 | AL108: Cmay
B109: Soporte pretrasplante hepático extracorporeo por sesión | D109: 0 | E109: 0 | AL109: Act
B110: Mantención donante cadáver (pulmón, corazón o hígado) (muerte cerebral) | D110: 0 | E110: 0 | AL110: Act
B111: TOTAL | D111: =SUM(D100:D110) -> 0 | E111: =SUM(E100:E110) -> 0 | F111: =SUM(F100:F110) -> 0 | G111: =SUM(G100:G110) -> 0 | H111: =SUM(H100:H110) -> 0 | AB111: =SUM(AB100:AB110) -> 0 | AC111: =SUM(AC100:AC110) -> 0 | AD111: 0 | AE111: 0 | AF111: 0 | AG111: 0 | AH111: 0 | AI111: 0 | AJ111: 0 | AK111: 0
B112: ATENCION CERRADA
A113: 0203001 | B113: Día cama hospitalización integral medicina, cirugía, pediatría, obstetricia-ginecología y especialidades (sala 3 camas o más) (Hosp. Alta Complejidad) | C113: MAI | D113: 0 | E113: =SUM(F113:G113) -> 0 | AL113: DsCa | AM113: 36,360 | AN113: =AM113*F113 -> 0
A114: 0203102 | B114: Día cama hospitalización integral medicina, cirugía, pediatría, obstetricia-ginecología y especialidades (sala 3 camas o más) (Hosp. Mediana Complejidad) | C114: MAI | D114: 0 | E114: =SUM(F114:G114) -> 0 | AL114: DsCa | AM114: 33,480 | AN114: 0
A115: 0203103 | B115: Día cama hospitalización integral medicina, cirugía, pediatría, obstetricia-ginecología y especialidades (sala 3 camas o más) (Hosp. Baja Complejidad) | C115: MAI | D115: 0 | E115: 0 | AL115: DsCa | AM115: 27,900 | AN115: 0
A116: 0203002 | B116: Día cama hospitalización integral adulto en Unidad de Cuidado Intensivo (U.C.I.) | C116: MAI | D116: 0 | E116: 0 | AL116: DsCa | AM116: 151,180 | AN116: 0
A117: 0203003 | B117: Día cama hospitalización integral pediátrica en Unidad de Cuidado Intensivo (U.C.I). | C117: MAI | D117: 0 | E117: 0 | AL117: DsCa | AM117: 151,180 | AN117: 0
A118: 0203004 | B118: Día cama hospitalización integral neonatal en Unidad de Cuidado Intensivo (U.C.I.) | C118: MAI | D118: 0 | E118: 0 | AL118: DsCa | AM118: 151,180 | AN118: 0
A119: 0203005 | B119: Día cama hospitalización integral adulto en Unidad de Tratamiento Intermedio (U.T.I) | C119: MAI | D119: 0 | E119: 0 | AL119: DsCa | AM119: 73,020 | AN119: 0
A120: 0203006 | B120: Día cama hospitalización integral pediátrica en Unidad de Tratamiento Intermedio (U.T.I) | C120: MAI | D120: 0 | E120: 0 | AL120: DsCa | AM120: 73,020 | AN120: 0
A121: 0203007 | B121: Día cama hospitalización integral neonatal en Unidad de Tratamiento Intermedio (U.T.I) | C121: MAI | D121: 0 | E121: 0 | AL121: DsCa | AM121: 73,020 | AN121: 0
A122: 0203008 | B122: Día cama hospitalización integral incubadora | C122: MAI | D122: 0 | E122: 0 | AL122: DsCa | AM122: 65,510 | AN122: 0
A123: 0203009 | B123: Día cama hospitalización integral psiquiatría crónicos | C123: MAI | D123: 0 | E123: 0 | AL123: DsCa | AM123: 18,590 | AN123: 0
A124: 0203109 | B124: Día cama hosp. integral psiquiatría corta estadía | C124: MAI | D124: 0 | E124: 0 | AL124: DsCa | AM124: 29,130 | AN124: 0
A125: 0203209 | B125: Día cama hosp. integral desintoxicación alcohol y drogas | C125: MAI | D125: 0 | E125: 0 | AL125: DsCa | AM125: 30,320 | AN125: 0
B126: TOTAL | D126: =SUM(D113:D125) -> 0 | E126: =SUM(E113:E125) -> 0 | F126: =SUM(F113:F125) -> 0 | G126: =SUM(G113:G125) -> 0 | H126: =SUM(H113:H125) -> 0 | AB126: =SUM(AB113:AB125) -> 0 | AC126: =SUM(AC113:AC125) -> 0 | AD126: 0 | AE126: 0 | AF126: 0 | AG126: 0 | AH126: 0 | AI126: 0 | AJ126: 0 | AK126: 0 | AM126: 913,890 | AN126: 0
B127: MISCELANEOS DIA CAMA
A128: 0203010 | B128: Día cama integral psiquiátrico diurno | C128: MAI | D128: 0 | E128: =SUM(F128:G128) -> 0 | AL128: DsCa | AM128: 12,220 | AN128: =AM128*F128 -> 0
A129: 0203110 | B129: Día cama hospitalización integral psiquiatría mediana estadía | C129: MAI | D129: 0 | E129: 0 | AL129: DsCa | AM129: 29,370 | AN129: 0
A130: 0203011 | B130: Día cama integral de observación o día cama integral ambulatorio diurno | C130: MAI | D130: 0 | E130: 0 | AL130: DsCa | AM130: 12,220 | AN130: 0
A131: 0203111 | B131: Camilla de observación en servicio de urgencia | C131: MAI | D131: 0 | E131: 0 | AL131: Cami | AM131: 5,390 | AN131: 0
A132: 0203012 | B132: Día cama integral geriatría o crónicos | C132: MAI | D132: 0 | E132: 0 | AL132: DsCa | AM132: 36,360 | AN132: 0
A133: 0203013 | B133: Día estada en cámara hiperbárica | C133: MAI | D133: 0 | E133: 0 | AL133: DsCa | AM133: 98,300 | AN133: 0
A134: 0203014 | B134: Día cama hogar embarazada rural (del Servicio de Salud) | C134: MAI | D134: 0 | E134: 0 | AL134: DsCa | AM134: 11,610 | AN134: 0
A135: 0203015 | B135: Día cuna de hospitalización integral | C135: MAI | D135: 0 | E135: 0 | AL135: DsCa | AM135: 7,060 | AN135: 0
A136: 0203016 | B136: Día cama hospitalización integral urgencia H.U.A.P. (Sólo Hospital Urgencia Asistencia Pública) | C136: MAI | D136: 0 | E136: 0 | AL136: DsCa | AM136: 50,960 | AN136: =AM136*F136 -> 0
A137: 0203017 | B137: Día cama hogar protegido paciente psiquiátrico compensado | C137: MAI | D137: 0 | E137: 0 | AL137: DsCa | AM137: 8,940 | AN137: =AM137*F137 -> 0
B138: TOTAL ARANCEL MAI | D138: =SUM(D128:D137) -> 0 | E138: =SUM(E128:E137) -> 0 | F138: =SUM(F128:F137) -> 0 | G138: =SUM(G128:G137) -> 0 | H138: =SUM(H128:H137) -> 0 | AB138: =SUM(AB128:AB137) -> 0 | AC138: =SUM(AC128:AC137) -> 0 | AD138: 0 | AE138: 0 | AF138: 0 | AG138: 0 | AH138: 0 | AI138: 0 | AJ138: 0 | AK138: 0 | AM138: 272,430 | AN138: 0
A139: 0203211 | B139: Día Cama Residencia Protegida | D139: =SUM(E139+H139) -> 0 | E139: =SUM(F139:G139) -> 0 | AL139: DsCa
B140: TOTAL ARANCEL MLE Y NO ARANCELADO | D140: =D139 -> 0 | E140: =E139 -> 0 | F140: =F139 -> 0 | G140: =G139 -> 0 | H140: =H139 -> 0 | AB140: =AB139 -> 0 | AC140: =AC139 -> 0 | AD140: 0 | AE140: 0 | AF140: 0 | AG140: 0 | AH140: 0 | AI140: 0 | AJ140: 0 | AK140: 0
B141: TOTAL PRODUCCION | D141: =SUM(D138+D140) -> 0 | E141: =SUM(E138+E140) -> 0 | F141: =SUM(F138+F140) -> 0 | G141: =SUM(G138+G140) -> 0 | H141: =SUM(H138+H140) -> 0 | AB141: =SUM(AB138+AB140) -> 0 | AC141: =SUM(AC138+AC140) -> 0 | AD141: 0 | AE141: 0 | AF141: 0 | AG141: 0 | AH141: 0 | AI141: 0 | AJ141: 0 | AK141: 0 | AM141: 272,430 | AN141: 0
B142: EXAMENES DE LABORATORIO
B143: I.- SANGRE, HEMATOLOGIA
A144: 0301001 | B144: Acidificación del suero, test de Ham | C144: MAI
A145: 0301002 | B145: Acido fólico o folatos | C145: MAI | D145: 0 | E145: =SUM(F145:G145) -> 0 | AL145: ExLab | AM145: 3,860 | AN145: =AM145*F145 -> 0
A146: 0301003 | B146: Adenograma, esplenograma, mielograma c/u | C146: MAI | D146: =SUM(E146+H146) -> 0 | E146: =SUM(F146:G146) -> 0 | AL146: ExLab | AM146: 4,800 | AN146: 0
A147: 0301004 | B147: Adhesividad plaquetaria | C147: MAI
A148: 0301005 | B148: Aglutininas anti Rho | C148: MAI | D148: 0 | E148: 0 | AL148: ExLab | AM148: 3,440 | AN148: 0
A149: 0301006 | B149: Agregación plaquetaria | C149: MAI | D149: 0 | E149: 0 | AL149: ExLab | AM149: 3,440 | AN149: 0
A150: 0301007 | B150: Anticoagulantes circulantes o anticoagulante lúpico | C150: MAI | D150: 0 | E150: 0 | AL150: ExLab | AM150: 3,440 | AN150: 0
A151: 0301008 | B151: Antitrombina III | C151: MAI | D151: 0 | E151: 0 | AL151: ExLab | AM151: 3,440 | AN151: 0
A152: 0301009 | B152: Auto-hemólisis test, con y sin glucosa | C152: MAI
A153: 0301010 | B153: Células del lupus, cada muestra | C153: MAI
A154: 0301011 | B154: Coagulación, tiempo de | C154: MAI | D154: 0 | E154: 0 | AL154: ExLab | AM154: 1,190 | AN154: 0
A155: 0301012 | B155: Coágulo, tiempo de retracción del | C155: MAI
A156: 0301013 | B156: Coágulo, tiempo de lisis del | C156: MAI | D156: 0 | E156: 0 | AL156: ExLab | AM156: 460 | AN156: 0
A157: 0301014 | B157: Coombs directo, test de | C157: MAI | D157: 0 | E157: 0 | AL157: ExLab | AM157: 940 | AN157: 0
A158: 0301015 | B158: Coombs indirecto, prueba de | C158: MAI | D158: 0 | E158: 0 | AL158: ExLab | AM158: 1,720 | AN158: 0
A159: 0301016 | B159: Cuerpos de Heinz | C159: MAI
A160: 0301017 | B160: Deshidrogenasa glucosa-6-fosfato en eritrocitos | C160: MAI | D160: 0 | E160: 0 | AL160: ExLab | AM160: 3,610 | AN160: 0
A161: 0301018 | B161: Deshidrogenasa 6-fosfogluconato en eritrocitos | C161: MAI | D161: 0 | E161: 0 | AL161: ExLab | AM161: 3,610 | AN161: 0
A162: 0301019 | B162: Drepanocitos, investigación de | C162: MAI | D162: 0 | E162: 0 | AL162: ExLab | AM162: 1,720 | AN162: 0
A163: 0301020 | B163: Euglobulinas, tiempo de lisis de | C163: MAI | D163: 0 | E163: 0 | AL163: ExLab | AM163: 1,190 | AN163: 0
A164: 0301021 | B164: Fibrinógeno | C164: MAI | D164: 0 | E164: 0 | AL164: ExLab | AM164: 1,720 | AN164: 0
A165: 0301022 | B165: Test de neutralización plaquetaria | C165: MAI | D165: 0 | E165: 0 | AL165: ExLab | AM165: 3,440 | AN165: 0
A166: 0301023 | B166: Factor III plaquetario | C166: MAI
A167: 0301024 | B167: Factor V | C167: MAI | D167: 0 | E167: 0 | AL167: ExLab | AM167: 1,720 | AN167: 0
A168: 0301025 | B168: Factores VII, VIII, IX, X, XI, XII, XIII, c/u | C168: MAI | D168: 0 | E168: 0 | AL168: ExLab | AM168: 3,610 | AN168: 0
A169: 0301026 | B169: Ferritina | C169: MAI | D169: 0 | E169: 0 | AL169: ExLab | AM169: 4,390 | AN169: 0
A170: 0301027 | B170: Fibrinógeno, productos de degradación del | C170: MAI | D170: 0 | E170: 0 | AL170: ExLab | AM170: 3,610 | AN170: 0
A171: 0301028 | B171: Fierro sérico | C171: MAI | D171: 0 | E171: 0 | AL171: ExLab | AM171: 1,720 | AN171: 0
A172: 0301029 | B172: Fierro, capacidad de fijación del (incluye fierro sérico) | C172: MAI | D172: 0 | E172: 0 | AL172: ExLab | AM172: 3,610 | AN172: 0
A173: 0301030 | B173: Fierro, cinética del (cada determinación) | C173: MAI | D173: 0 | E173: 0 | AL173: ExLab | AM173: 4,390 | AN173: 0
A174: 0301031 | B174: Fierro, prueba de sobrecarga | C174: MAI | D174: 0 | E174: 0 | AL174: ExLab | AM174: 3,610 | AN174: 0
A175: 0301032 | B175: Gelación por etanol | C175: MAI
A176: 0301033 | B176: Grupos menores. Tipificación o determinación de otros sistemas sanguíneos (Kell, Duffy, Kidd y otros) c/u. | C176: MAI | D176: 0 | E176: 0 | AL176: ExLab | AM176: 2,120 | AN176: =AM176*F176 -> 0
A177: 0301034 | B177: Grupos sanguíneos AB0 y Rho (incluye estudio de factor Du en Rh negativos) | C177: MAI | D177: 0 | E177: 0 | AL177: ExLab | AM177: 1,950 | AN177: 0
A178: 0301035 | B178: Haptoglobina cuantitativa | C178: MAI | D178: 0 | E178: 0 | AL178: ExLab | AM178: 3,250 | AN178: 0
A179: 0301036 | B179: Hematocrito (proc. aut.) | C179: MAI | D179: 0 | E179: 0 | AL179: ExLab | AM179: 540 | AN179: 0
A180: 0301037 | B180: Hemoglobina A2 cuantitativa | C180: MAI | D180: 0 | E180: 0 | AL180: ExLab | AM180: 3,610 | AN180: 0
A181: 0301038 | B181: Hemoglobina en sangre total (proc. aut.) | C181: MAI | D181: 0 | E181: 0 | AL181: ExLab | AM181: 540 | AN181: 0
A182: 0301039 | B182: Hemoglobina fetal cualitativa | C182: MAI | D182: 0 | E182: 0 | AL182: ExLab | AM182: 540 | AN182: 0
A183: 0301040 | B183: Hemoglobina fetal cuantitativa en eritrocitos | C183: MAI | D183: 0 | E183: 0 | AL183: ExLab | AM183: 3,610 | AN183: 0
A184: 0301041 | B184: Hemoglobina glicosilada | C184: MAI | D184: 0 | E184: 0 | AL184: ExLab | AM184: 3,750 | AN184: 0
A185: 0301042 | B185: Hemoglobina plasmática | C185: MAI | D185: 0 | E185: 0 | AL185: ExLab | AM185: 730 | AN185: 0
A186: 0301043 | B186: Hemoglobina termolabil | C186: MAI
A187: 0301044 | B187: Hemoglobina, electroforesis de (incluye Hb. total) | C187: MAI | D187: 0 | E187: 0 | AL187: ExLab | AM187: 3,860 | AN187: 0
A188: 0301045 | B188: Hemograma (incluye recuentos de leucocitos y eritrocitos, hemoglobina, hematocrito, fórmula leucocitaria, características de los elementos figurados y velocidad de eritrosedimentación) | C188: MAI | D188: 0 | E188: 0 | AL188: ExLab | AM188: 2,470 | AN188: 0
A189: 0301046 | B189: Hemolisinas | C189: MAI
A190: 0301047 | B190: Hemólisis con sucrosa, test de | C190: MAI
A191: 0301048 | B191: Hemosiderina medular | C191: MAI | D191: 0 | E191: 0 | AL191: ExLab | AM191: 730 | AN191: 0
A192: 0301049 | B192: Heparina, cuantificación de | C192: MAI | D192: 0 | E192: 0 | AL192: ExLab | AM192: 3,610 | AN192: 0
A193: 0301050 | B193: Isoinmunización, detección de anticuerpos irregulares (proc. aut.). | C193: MAI | D193: 0 | E193: 0 | AL193: ExLab | AM193: 2,650 | AN193: 0
A194: 0301051 | B194: Isoinmunización, detección e identificación de anticuerpos | C194: MAI | D194: 0 | E194: 0 | AL194: ExLab | AM194: 3,610 | AN194: 0
A195: 0301052 | B195: Isopropanol, test de | C195: MAI
A196: 0301053 | B196: Metahemalbúmina | C196: MAI
A197: 0301054 | B197: Metahemoglobina | C197: MAI | D197: 0 | E197: 0 | AL197: ExLab | AM197: 940 | AN197: 0
A198: 0301055 | B198: Muraminidasa en eritrocitos | C198: MAI
A199: 0301056 | B199: Piruvatoquinasa en eritrocitos | C199: MAI
A200: 0301057 | B200: Protamina sulfato, determinación de | C200: MAI
... 2855 more rows

Sheet B17
A1: SERVICIO DE SALUD / ESTABLECIMIENTO MUNICIPAL
A2: =CONCATENATE("COMUNA: ",NOMBRE!B2," - ","( ",NOMBRE!C2,NOMBRE!D2,NOMBRE!E2,NOMBRE!F2,NOMBRE!G2," )") -> COMUNA: - ( )
A3: =CONCATENATE("ESTABLECIMIENTO/ESTRATEGIA: ",NOMBRE!B3," - ","( ",NOMBRE!C3,NOMBRE!D3,NOMBRE!E3,NOMBRE!F3,NOMBRE!G3,NOMBRE!H3," )") -> ESTABLECIMIENTO/ESTRATEGIA: - ( )
A4: =CONCATENATE("MES: ",NOMBRE!B6," - ","( ",NOMBRE!C6,NOMBRE!D6," )") -> MES: - ( )
A5: =CONCATENATE("AÑO: ",NOMBRE!B7) -> AÑO: 2017
D6: REM-B17. ACTIVIDADES DE APOYO DIAGNOSTICO y TERAPEUTICO
A7: PARTE I
A8: SECCION A: ATENCIONES ABIERTAS
A9: CODIGOS | B9: IDENTIFICACION DE PRESTACIONES | C9: TOTAL PRODUCCIÓN | D9: TOTAL BENEFICIARIOS MAI | E9: PAGO POR PRESTACIONES ($)
B10: CONSULTAS Y ATENCION MEDICA | C10: =SUM(C11:C23) -> 0 | D10: =SUM(D11:D23) -> 0 | E10: =SUM(E11:E23) -> 0
A11: 0101101 | B11: Consulta o control médico integral en atención primaria | C11: =VLOOKUP(A11,tabla1,4,FALSE) -> 0 | D11: =VLOOKUP(A11,tabla3,6,FALSE) -> 0 | E11: =VLOOKUP(A11,tabla1,40,FALSE) -> 0
A12: 0101102 | B12: Consulta o control médico integral en especialidades (Hosp. Mediana Complejidad) | C12: =VLOOKUP(A12,tabla1,4,FALSE) -> 0 | D12: 0 | E12: 0
A13: 0101103 | B13: Consulta médica integral en servicio de urgencia (Hosp. Alta Complejidad) | C13: 0 | D13: 0 | E13: 0
A14: 0101104 | B14: Consulta médica integral en C.R.S. | C14: 0 | D14: 0 | E14: 0
A15: 0101105 | B15: Consulta médica integral en servicio de urgencia (Hosp. Mediana Complejidad) | C15: 0 | D15: 0 | E15: 0
A16: 0101106 | B16: Asistencia de cardiólogo a cirugías no cardíacas | C16: 0 | D16: 0 | E16: 0
A17: 0101107 | B17: Atención médica del recién nacido | C17: 0 | D17: 0 | E17: 0
A18: 0101108 | B18: Consulta integral de especialidades en Cirugía, Ginecología y Obstetricia, Ortopedia y Traumatología (en CDT) | C18: 0 | D18: 0 | E18: 0
A19: 0101109 | B19: Consulta integral de especialidades en Urología, Otorrinolaringología, Medicina Fisica y Rehabilitación, Dermatología, Pediatría y Subespecialidades (en CDT) | C19: 0 | D19: 0 | E19: 0
A20: 0101110 | B20: Consulta integral de especialidades en Medicina Interna y Subespecialidades, Oftalmología, Neurología, Oncología (en CDT) | C20: 0 | D20: 0 | E20: 0
A21: 0101111 | B21: Consulta integral de especialidades en Cirugía, Ginecología y Obstetricia, Ortopedia y Traumatología (Hosp. Alta Complejidad) | C21: 0 | D21: 0 | E21: 0
A22: 0101112 | B22: Consulta integral de especialidades en Urología, Otorrinolaringología, Medicina Física y Rehabilitación, Dermatología, Pediatría y Subespecialidades (Hosp. Alta Complejidad) | C22: 0 | D22: 0 | E22: 0
A23: 0101113 | B23: Consulta integral de especialidades en Medicina Interna y Subespecialidades, Oftalmología, Neurología, Oncología (Hosp. Alta Complejidad) | C23: 0 | D23: 0 | E23: 0
A24: 0903006 | B24: Consultoría de salud mental por psiquiatra (sesión 4 hrs.) (mínimo 8 pacientes) | C24: =B!D1108 -> 0 | D24: =B!F1108 -> 0 | E24: =B!AN1108 -> 0
B25: OTRAS CONSULTAS Y ATENCION MEDICA | C25: =SUM(C26:C30) -> 0
A26: 0101001 | B26: Consulta médica general | C26: =VLOOKUP(B26,tabla2,3,FALSE) -> 0
B27: Consultas de urgencia en Hospitales de baja complejidad | C27: =VLOOKUP(B27,tabla2,3,FALSE) -> 0
B28: Consultas de especialidad en hospitales de baja complejidad y establecimientos de APS | C28: =VLOOKUP(B28,tabla2,3,FALSE) -> 0
B29: Otras consulta médica de especialidades | C29: =VLOOKUP(B29,tabla2,3,FALSE) -> 0
B30: Consulta médica de especialidad en servicio de urgencia | C30: =VLOOKUP(B30,tabla2,3,FALSE) -> 0
B31: CONSULTAS POR OTROS PROFESIONALES DE LA SALUD | C31: =SUM(C32:C42) -> 0 | D31: =SUM(D32:D42) -> 0 | E31: =SUM(E32:E47) -> 0
A32: 0102001 | B32: Consulta o control por enfermera, matrona o nutricionista | C32: =B!$D$27 -> 0 | D32: =B!$F$27 -> 0 | E32: =B!$AN$27 -> 0
A33: 0102002 | B33: Control de salud niño con EDP por enfermera | C33: =B!$D$28 -> 0 | D33: =B!$F$28 -> 0 | E33: =B!$AN$28 -> 0
A34: 0102003 | B34: Consulta o control por auxiliar de enfermería | C34: =B!$D$29 -> 0 | D34: =B!$F$29 -> 0 | E34: =B!$AN$29 -> 0
A35: 0102005 | B35: Consulta por fonoaudiólogo | C35: =B!$D$30 -> 0 | D35: =B!$F$30 -> 0 | E35: =B!$AN$30 -> 0
A36: 0102006 | B36: Atención kinesiológica integral ambulatoria | C36: =B!$D$31 -> 0 | D36: =B!$F$31 -> 0 | E36: =B!$AN$31 -> 0
A37: 0102007 | B37: Atención integral por terapeuta ocupacional | C37: =B!$D$32 -> 0 | D37: =B!$F$32 -> 0 | E37: =B!$AN$32 -> 0
A38: 0903002 | B38: Consulta o control psicológico clínico | C38: =B!$D$1104 -> 0 | D38: =B!$F$1104 -> 0 | E38: =B!$AN$1104 -> 0
A39: 0903003 | B39: Consulta de salud mental por otros profesionales | C39: =B!$D$1105 -> 0 | D39: =B!$F$1105 -> 0 | E39: =B!$AN$1105 -> 0
A40: 0903004 | B40: Intervención psicosocial grupal (4 a 8 pacientes, familiares o cuidadores) | C40: =B!$D$1106 -> 0 | D40: =B!$F$1106 -> 0 | E40: =B!$AN$1106 -> 0
A41: 0903005 | B41: Psicoterapia de grupo (por psicólogo o psiquiatra) (4 a 8 pacientes) | C41: =B!$D$1107 -> 0 | D41: =B!$F$1107 -> 0 | E41: =B!$AN$1107 -> 0
A42: 0903001 | B42: Consulta de psiquiatría | C42: =B!$D$1103 -> 0 | D42: =B!$F$1103 -> 0 | E42: =B!$AN$1103 -> 0
B43: OTRAS CONSULTAS Y ATENCION MEDICA | C43: =SUM(C44:C47) -> 0
B44: Consulta por otros profesionales | C44: =B!$D$34 -> 0
B45: Consultas/ Controles de Especialidades Odontológica | C45: =B!$D$35 -> 0
B46: Consultas de morbilidad odontológica | C46: =B!$D$36 -> 0
B47: Consultas de urgencia odontológica | C47: =B!$D$37 -> 0
B48: PROGRAMAS DE REHABILITACION | C48: =SUM(C49:C50) -> 0 | D48: =SUM(D49:D50) -> 0 | E48: =SUM(E49:E50) -> 0
A49: 0903007 | B49: Programa de rehabilitación tipo 1 (mensual, grupo 6 a 10 pers.) | C49: =B!$D$1109 -> 0 | D49: =B!$F$1109 -> 0 | E49: =B!$AN$1109 -> 0
A50: 0903008 | B50: Programa de rehabilitación tipo 2 (mensual, grupo 5 a 7 pers.) | C50: =B!$D$1110 -> 0 | D50: =B!$F$1110 -> 0 | E50: =B!$AN$1110 -> 0
B51: OTROS PROGRAMAS | C51: =C52 -> 0
A52: 0901003 | B52: Electroshocks e insulino-terapia (efectuada y controlada por el médico psiquiatra, incluye trat. de las complicaciones medicas, c/s miorrelajantes); cada sesión (max.6) | C52: =B!$D$1081 -> 0
B53: EDUCACION DE GRUPO | C53: =SUM(C54:C57) -> 0 | D53: =SUM(D54:D57) -> 0 | E53: =SUM(E54:E57) -> 0
A54: 0103001 | B54: Educación de grupo por médico | C54: =B!$D$41 -> 0 | D54: =B!$F$41 -> 0 | E54: =B!$AN$41 -> 0
A55: 0103002 | B55: Educación de grupo por enfermera, matrona o nutricionista | C55: =B!$D$42 -> 0 | D55: =B!$F$42 -> 0 | E55: =B!$AN$42 -> 0
A56: 0103003 | B56: Educación de grupo por asistente social | C56: =B!$D$43 -> 0 | D56: =B!$F$43 -> 0 | E56: =B!$AN$43 -> 0
A57: 0103004 | B57: Educación de grupo por auxiliar de enfermería | C57: =B!$D$44 -> 0 | D57: =B!$F$44 -> 0 | E57: =B!$AN$44 -> 0
B58: OTRA EDUCADION DE GRUPO | C58: =C59 -> 0
B59: Educación de grupo por otro integrante del equipo de salud | C59: =B!$D$46 -> 0
B60: VISITAS DOMICILIARIAS | C60: =SUM(C61:C63) -> 0 | D60: =SUM(D61:D63) -> 0 | E60: =SUM(E61:E63) -> 0
A61: 0104001 | B61: Visita a domicilio por enfermera, matrona o nutricionista | C61: =B!$D$50 -> 0 | D61: =B!$F$50 -> 0 | E61: =B!$AN$50 -> 0
A62: 0104002 | B62: Visita a domicilio por asistente social | C62: =B!$D$51 -> 0 | D62: =B!$F$51 -> 0 | E62: =B!$AN$51 -> 0
A63: 0104003 | B63: Visita a domicilio por auxiliar de enfermería | C63: =B!$D$52 -> 0 | D63: =B!$F$52 -> 0 | E63: =B!$AN$52 -> 0
B64: OTRAS VISITAS DOMICILIARIAS | C64: =SUM(C65:C66) -> 0
B65: Visita a domicilio por otro integrante del equipo de salud | C65: =B!$D$54 -> 0
B66: Visita domiciaria por profesional y técnico paramédico | C66: =B!$D$55 -> 0
B67: TOTAL | C67: =C10+C31+C48+C53+C60+C24+C25+C43+C51+C58+C64 -> 0 | D67: =D10+D31+D48+D53+D60+D24 -> 0 | E67: =E10+E31+E48+E53+E60+E24 -> 0
A68: SECCION B: EXÁMENES DE DIAGNÓSTICO
A69: TIPO DE EXAMEN | C69: TOTAL PRODUCCIÓN | D69: TOTAL BENEFICIARIOS MAI | E69: PAGO POR PRESTACIONES ($)
A70: TOTAL EXAMENES LABORATORIO | C70: =SUM(C71:C76,C80:C83) -> 0 | D70: =SUM(D71:D75,D76,D80:D82) -> 0 | E70: =SUM(E71:E75,E76,E80:E82) -> 0
A71: I | B71: HEMATOLOGICOS | C71: =B!$D$236 -> 0 | D71: =B!$F$236 -> 0 | E71: =B!$AN$236 -> 0
A72: II | B72: BIOQUIMICOS | C72: =B!$D$312 -> 0 | D72: =SUM(B!F238:F241,B!F242:F300,B!F301:F311) -> 0 | E72: =B!$AN$312 -> 0
A73: III | B73: HORMONALES | C73: =B!$D$363 -> 0 | D73: =B!$F$363 -> 0 | E73: =B!$AN$363 -> 0
A74: IV | B74: GENETICA | C74: =B!$D$371 -> 0 | D74: =B!$F$371 -> 0 | E74: =B!$AN$371 -> 0
A75: V | B75: INMUNOLOGICOS | C75: =B!$D$440 -> 0 | D75: =B!$F$440 -> 0 | E75: =B!$AN$440 -> 0
A76: VI | B76: MICROBIOLOGICOS | C76: =SUM(C77:C79) -> 0 | D76: =SUM(D77:D79) -> 0 | E76: =SUM(E77:E79) -> 0
B77: a) BACTERIAS Y HONGOS | C77: =B!$D$489 -> 0 | D77: =B!$F$489 -> 0 | E77: =B!$AN$489 -> 0
B78: b) PARASITOS | C78: =B!$D$515 -> 0 | D78: =SUM(B!F491:F512,B!F513:F514) -> 0 | E78: =B!$AN$515 -> 0
B79: c) VIRUS | C79: =B!$D$535 -> 0 | D79: =B!$F$535 -> 0 | E79: =B!$AN$535 -> 0
A80: VII | B80: PROCEDIMIENTO O DETERMINACION DIRECTA C/PACIENTE | C80: =B!$D$547 -> 0 | D80: =B!$F$547 -> 0 | E80: =B!$AN$547 -> 0
A81: VIII | B81: EX. DE DEPOSICIONES EXUDADOS. SECREC. Y OTROS LIQ. | C81: =B!$D$610 -> 0 | D81: =SUM(B!F565:F595,B!F596:F609) -> 0 | E81: =B!$AN$610 -> 0
A82: IX | B82: ORINA | C82: =B!$D$645 -> 0 | D82: =B!$F$645 -> 0 | E82: =B!$AN$645 -> 0
A83: X | B83: OTROS EXAMENES DE LABORATORIO | C83: =B!$D$3055 -> 0 | D83: =B!$F$3055 -> 0
A84: TOTAL EXAMENES IMAGENOLOGIA | C84: =+C85+C86+C87+C88+C92+C93 -> 0 | D84: =+D85+D86+D87+D88+D92 -> 0 | E84: =+E85+E86+E87+E88+E92 -> 0
A85: I. a) | B85: EX. RADIOLOGICOS SIMPLES | C85: =B!$D$705 -> 0 | D85: =SUM(B!F648:F649,B!F650,B!F651,B!F652:F662,B!F663:F669,B!F670:F678,B!F679,B!F680:F698,B!F699:F701) -> 0 | E85: =B!$AN$705 -> 0
A86: I. b) | B86: EX. RADIOLOGICOS COMPLEJOS | C86: =B!$D$731 -> 0 | D86: =B!$F$731 -> 0 | E86: =B!$AN$731 -> 0
A87: II. | B87: TOMOGRAFIA AXIAL COMP. | C87: =B!$D$761 -> 0 | D87: =B!$F$761 -> 0 | E87: =B!$AN$761 -> 0
A88: III | B88: ULTRASONOGRAFIA | C88: =SUM(C89:C91) -> 0 | D88: =SUM(D89:D91) -> 0 | E88: =SUM(E89:E91) -> 0
B89: Ecotomografias ( Sin Ecografía Obstetr. Y Abdominal ) | C89: =B!$D$783-B!D763-B!D764 -> 0 | D89: =B!$F$783-B!F763-B!F764 -> 0 | E89: =B!$AN$783-B!$AN$763-B!$AN$764 -> 0
B90: Ecografías Obstétricas | C90: =B!$D$763 -> 0 | D90: =B!$F$763 -> 0 | E90: =B!$AN$763 -> 0
B91: Ecotomografias abdominal | C91: =B!$D$764 -> 0 | D91: =B!$F$764 -> 0 | E91: =B!$AN$764 -> 0
A92: IV | B92: RESONANCIA MAGNÉTICA | C92: =B!$D$817 -> 0 | D92: =B!$F$817 -> 0 | E92: =B!$AN$817 -> 0
B93: OTROS EXÁMENES DE IMÁGENES | C93: =B!$D$880 -> 0 | D93: =B!$F$880 -> 0
B94: TOTAL EXAMENES ANATOMIA PATOLOGICA | C94: =B!$D$1075 -> 0 | D94: =B!$F$1075 -> 0 | E94: =B!$AN$1075 -> 0
A95: SECCION C: PROCEDIMIENTOS DE MEDICINA NUCLEAR , GINECOLOGÍA Y OBSTETRICIA, Y ORTOPEDIA
A96: CÓDIGOS | B96: IDENTIFICACION DE PRESTACIONES | C96: TOTAL PRODUCCIÓN | D96: TOTAL BENEFICIARIOS MAI | E96: PAGO POR PRESTACIONES ($)
A97: 05 | B97: PROCEDIMIENTOS DE MEDICINA NUCLEAR | C97: =B!D887+B!D894+B!D898+B!D905+B!D914+B!D918+B!D922+B!D926+B!D937+B!D945+B!D950+B!D968+B!D986+B!D934 -> 0 | D97: =B!F887+B!F894+B!F898+B!F905+B!F914+B!F918+B!F922+B!F926+B!F937+B!F945+B!F950+B!F968+B!F986+B!F934 -> 0 | E97: =B!AN887+B!AN894+B!AN898+B!AN905+B!AN914+B!AN918+B!AN922+B!AN926+B!AN937+B!AN945+B!AN950+B!AN968+B!AN986+B!AN934 -> 0
A98: 2001 | B98: PROCEDIMIENTOS DE GINECOLOGIA Y OBSTETRICIA | C98: =B!D2343+B!D2386+B!D2387 -> 0 | D98: =B!F2335+B!F2386+B!F2387 -> 0 | E98: =B!AN2335+B!AN2386+B!AN2387 -> 0
A99: 2107 | B99: PROCEDIMIENTOS DE ORTOPEDIA | C99: =B!D2642 -> 0 | D99: =B!F2642 -> 0 | E99: =B!AN2642 -> 0
B100: SUB-TOTAL FACTURACION SECCION C | C100: =SUM(C97:C99) -> 0 | D100: =SUM(D97:D99) -> 0 | E100: =SUM(E97:E99) -> 0
A101: SECCION D: INTERVENCIONES QUIRÚRGICAS
A102: CODIGOS | B102: IDENTIFICACION DE PRESTACIONES | C102: TOTAL PRODUCCIÓN | D102: TOTAL BENEFICIARIOS MAI | E102: PAGO POR PRESTACIONES ($)
A103: 1103 | B103: I NEUROCIRUGIA | C103: =B!$D$1246 -> 0 | D103: =B!$J$1246 -> 0 | E103: =B!$AN$1246 -> 0
A104: 1202 | B104: II CIRUGIA OFTALMOLOGICA | C104: =B!D1383 -> 0 | D104: =B!J1383 -> 0 | E104: =B!$AN$1383 -> 0
A105: 1302 | B105: III CIRUGIA OTORRINOLOGICA | C105: =B!D1525 -> 0 | D105: =B!J1522 -> 0 | E105: =B!$AN$1522 -> 0
A106: 1402 | B106: IV CIRUGIA DE CABEZA Y CUELLO | C106: =B!D1589 -> 0 | D106: =B!J1589 -> 0 | E106: =B!AN1589 -> 0
A107: 1502 | B107: V CIRUGIA PLASTICA Y REPARADORA | C107: =B!$D$1658 -> 0 | D107: =B!$J$1658 -> 0 | E107: =B!$AN$1658 -> 0
A108: 1602 | B108: VI DERMATOLOGIA Y TEGUMENTOS | C108: =B!$D$1703 -> 0 | D108: =B!$J$1703 -> 0 | E108: =B!$AN$1703 -> 0
A109: 1703 | B109: VII CIRUGIA CARDIOVASCULAR | C109: =B!$D$1921 -> 0 | D109: =B!$J$1908 -> 0 | E109: =B!$AN$1908 -> 0
A110: 1704 | B110: VIII CIRUGIA TORAXICA | C110: =B!$D$1991 -> 0 | D110: =B!$J$1987 -> 0 | E110: =B!$AN$1987 -> 0
A111: 1802 | B111: IX CIRUGIA ABDOMINAL | C111: =B!$D$2153 -> 0 | D111: =B!$J$2146 -> 0 | E111: =B!$AN$2146 -> 0
A112: 1803 | B112: X CIRUGIA PROCTOLOGICA | C112: =B!D2192 -> 0 | D112: =B!J2192 -> 0 | E112: =B!AN2192 -> 0
A113: 1902 | B113: XI CIRUGIA UROLOGICA Y SUPRARRENAL | C113: =B!$D$2316 -> 0 | D113: =B!J2316 -> 0 | E113: =B!AN2316 -> 0
A114: 2002 | B114: XII CIRUGIA DE LA MAMA | C114: =B!$D$2349 -> 0 | D114: =B!J2349 -> 0 | E114: =B!$AN$2349 -> 0
A115: 2003 | B115: XIII CIRUGIA GINECOLOGICA | C115: =B!$D$2384 -> 0 | D115: =B!$J$2384 -> 0 | E115: =B!$AN$2384 -> 0
A116: 2004 | B116: XIV CIRUGIA OBSTETRICA | C116: =(C117+C118) -> 0 | D116: =(D117+D118) -> 0 | E116: =(E117+E118) -> 0
B117: CESAREA CON HISTERECTOMIA 2004005 | C117: =B!$D$2389 -> 0 | D117: =B!$J$2389 -> 0 | E117: =B!$AN$2389 -> 0
B118: CESAREA C/S SALPINGOLIGADURA O SALPINGECTOMIA 2004006 | C118: =B!$D$2388 -> 0 | D118: =B!$J$2388 -> 0 | E118: =B!$AN$2388 -> 0
A120: 2104 | B120: XV TRAUMATOLOGIA | C120: =B!$D$2625 -> 0 | D120: =B!$J$2618 -> 0 | E120: =B!$AN$2618 -> 0
A121: 2106 | B121: XVI RETIRO ELEMENTOS OSTEOSINTESIS | C121: =B!$D2630 -> 0 | D121: =B!$J2630 -> 0 | E121: =B!$AN2630 -> 0
B122: SUB-TOTAL FACTURACION SECCION D | C122: =SUM(C103:C116)+C120+C121 -> 0 | D122: =SUM(D103:D116)+D120+D121 -> 0 | E122: =SUM(E103:E116)+E120+E121 -> 0
A123: SECCION E: ATENCION CERRADA, DIAS DE HOSPITALIZACION
A124: CODIGOS | B124: IDENTIFICACION DE PRESTACIONES | C124: TOTAL PRODUCCIÓN | D124: TOTAL BENEFICIARIOS MAI | E124: PAGO POR PRESTACIONES ($)
B125: ATENCION CERRADA
A126: 0203001 | B126: Día cama hospitalización integral medicina, cirugía, pediatría, obstetricia-ginecología y especialidades (sala 3 camas o más) (Hosp. Alta Complejidad) | C126: =B!$D$113 -> 0 | D126: =B!$F$113 -> 0 | E126: =B!$AN$113 -> 0
A127: 0203102 | B127: Día cama hospitalización integral medicina, cirugía, pediatría, obstetricia-ginecología y especialidades (sala 3 camas o más) (Hosp. Mediana Complejidad) | C127: =B!$D$114 -> 0 | D127: =B!$F$114 -> 0 | E127: =B!$AN$114 -> 0
A128: 0203103 | B128: Día cama hospitalización integral medicina, cirugía, pediatría, obstetricia-ginecología y especialidades (sala 3 camas o más) (Hosp. Baja Complejidad) | C128: =B!$D$115 -> 0 | D128: =B!$F$115 -> 0 | E128: =B!$AN$115 -> 0
A129: 0203002 | B129: Día cama hospitalización integral adulto en Unidad de Cuidado Intensivo (U.C.I.) | C129: =B!$D$116 -> 0 | D129: =B!$F$116 -> 0 | E129: =B!$AN$116 -> 0
A130: 0203003 | B130: Día cama hospitalización integral pediátrica en Unidad de Cuidado Intensivo (U.C.I). | C130: =B!$D$117 -> 0 | D130: =B!$F$117 -> 0 | E130: =B!$AN$117 -> 0
A131: 0203004 | B131: Día cama hospitalización integral neonatal en Unidad de Cuidado Intensivo (U.C.I.) | C131: =B!$D$118 -> 0 | D131: =B!$F$118 -> 0 | E131: =B!$AN$118 -> 0
A132: 0203005 | B132: Día cama hospitalización integral adulto en Unidad de Tratamiento Intermedio (U.T.I) | C132: =B!$D$119 -> 0 | D132: =B!$F$119 -> 0 | E132: =B!$AN$119 -> 0
A133: 0203006 | B133: Día cama hospitalización integral pediátrica en Unidad de Tratamiento Intermedio (U.T.I) | C133: =B!$D$120 -> 0 | D133: =B!$F$120 -> 0 | E133: =B!$AN$120 -> 0
A134: 0203007 | B134: Día cama hospitalización integral neonatal en Unidad de Tratamiento Intermedio (U.T.I) | C134: =B!$D$121 -> 0 | D134: =B!$F$121 -> 0 | E134: =B!$AN$121 -> 0
A135: 0203008 | B135: Día cama hospitalización integral incubadora | C135: =B!$D$122 -> 0 | D135: =B!$F$122 -> 0 | E135: =B!$AN$122 -> 0
A136: 0203009 | B136: Día cama hospitalización integral psiquiatría crónicos | C136: =B!$D$123 -> 0 | D136: =B!$F$123 -> 0 | E136: =B!$AN$123 -> 0
A137: 0203109 | B137: Día cama hosp. integral psiquiatría corta estadía | C137: =B!$D$124 -> 0 | D137: =B!$F$124 -> 0 | E137: =B!$AN$124 -> 0
A138: 0203209 | B138: Día cama hosp. integral desintoxicación alcohol y drogas | C138: =B!$D$125 -> 0 | D138: =B!$F$125 -> 0 | E138: =B!$AN$125 -> 0
B139: SUB TOTAL ATENCION CERRADA | C139: =SUM(C126:C138) -> 0 | D139: =SUM(D126:D138) -> 0 | E139: =SUM(E126:E138) -> 0
B140: MISCELANEOS DIAS CAMA | C140: =SUM(C141:C150) -> 0 | D140: =SUM(D141:D150) -> 0 | E140: =SUM(E141:E150) -> 0
A141: 0203010 | B141: Día cama integral psiquiátrico diurno | C141: =B!$D$128 -> 0 | D141: =B!$F$128 -> 0 | E141: =B!$AN$128 -> 0
A142: 0203110 | B142: Día cama hospitalización integral psiquiatría mediana estadía | C142: =B!$D$129 -> 0 | D142: =B!$F$129 -> 0 | E142: =B!$AN$129 -> 0
A143: 0203011 | B143: Día cama integral de observación o día cama integral ambulatorio diurno | C143: =B!$D$130 -> 0 | D143: =B!$F$130 -> 0 | E143: =B!$AN$130 -> 0
A144: 0203111 | B144: Camilla de observación en servicio de urgencia | C144: =B!$D$131 -> 0 | D144: =B!$F$131 -> 0 | E144: =B!$AN$131 -> 0
A145: 0203012 | B145: Día cama integral geriatría o crónicos | C145: =B!$D$132 -> 0 | D145: =B!$F$132 -> 0 | E145: =B!$AN$132 -> 0
A146: 0203013 | B146: Día estada en cámara hiperbárica | C146: =B!$D$133 -> 0 | D146: =B!$F$133 -> 0 | E146: =B!$AN$133 -> 0
A147: 0203014 | B147: Día cama hogar embarazada rural (del Servicio de Salud) | C147: =B!$D$134 -> 0 | D147: =B!$F$134 -> 0 | E147: =B!$AN$134 -> 0
A148: 0203015 | B148: Día cuna de hospitalización integral | C148: =B!$D$135 -> 0 | D148: =B!$F$135 -> 0 | E148: =B!$AN$135 -> 0
A149: 0203016 | B149: Día cama hospitalización integral urgencia H.U.A.P. (Sólo Hospital Urgencia Asistencia Pública) | C149: =B!$D$136 -> 0 | D149: =B!$F$136 -> 0 | E149: =B!$AN$136 -> 0
A150: 0203017 | B150: Día cama hogar protegido paciente psiquiátrico compensado | C150: =B!$D$137 -> 0 | D150: =B!$F$137 -> 0 | E150: =B!$AN$137 -> 0
B151: OTRO DIA CAMA | C151: =C152 -> 0
A152: 0203211 | B152: Día Cama Residencia Protegida | C152: =B!$D$139 -> 0
B153: TOTAL DIAS CAMA DE HOSPITALIZACION | C153: =(C139+C140+C151) -> 0 | D153: =(D139+D140) -> 0 | E153: =(E139+E140) -> 0
A154: SECCION F: ACTIVIDADES PROTECCION ESPECIFICA
A155: CODIGOS | B155: IDENTIFICACION DE PRESTACIONES | C155: TOTAL PRODUCCIÓN | D155: TOTAL BENEFICIARIOS MAI | E155: PAGO POR PRESTACIONES ($)
A156: 0105001 | B156: Vacunaciones (sólo considera administración) | C156: =B!$D$59 -> 0 | D156: =B!$F$59 -> 0 | E156: =B!$AN$59 -> 0
A157: 0105002 y 003 | B157: Desparasitación sarna y pediculosis (cada persona) | C157: =SUM(B!$D$60+B!$D$61) -> 0 | D157: =SUM(B!$F$60+B!$F$61) -> 0 | E157: =SUM(B!$AN$60+B!$AN$61) -> 0
B158: SUB-TOTAL FACTURACION SECCION F | C158: =SUM(C156:C157) -> 0 | D158: =SUM(D156:D157) -> 0 | E158: =SUM(E156:E157) -> 0
A159: SECCION G: PROCEDIMIENTOS DIAGNOSTICOS Y TERAPEUTICOS
A160: CODIGOS | B160: IDENTIFICACION DE PRESTACIONES | C160: TOTAL PRODUCCIÓN | D160: TOTAL BENEFICIARIOS MAI | E160: PAGO POR PRESTACIONES ($)
A161: 1101004 | B161: E.E.G. de 16 o más canales (incluye el cód. 11-01-006) | C161: =B!$D$1114 -> 0 | D161: =B!$F$1114 -> 0 | E161: =B!$AN$1114 -> 0
A162: 1101006 | B162: Electroencefalograma (E.E.G.) standard y/o activado...., de 8 canales | C162: =B!$D$1115 -> 0 | D162: =B!$F$1115 -> 0 | E162: =B!$AN$1115 -> 0
A163: 1701001 | B163: E.C.G. de reposo (incluye mínimo 12 derivaciones y 4 complejos por derivación) | C163: =B!$D$1814 -> 0 | D163: =B!$F$1814 -> 0 | E163: =B!$AN$1814 -> 0
A164: 1701003 | B164: Ergometría (incluye E.C.G. antes, durante y después del ejercicio con monitoreo continuo y medición de la intensidad del esfuerzo) | C164: =B!$D$1815 -> 0 | D164: =B!$F$1815 -> 0 | E164: =B!$AN$1815 -> 0
A165: 1701006 | B165: E.C.G. continuo (test Holter o similares, por ej. variabilidad de la frecuencia cardíaca y/o alta resolución del ST y/o depolarización tardía); 20 a 24 horas de registro | C165: =B!$D$1816 -> 0 | D165: =B!$F$1816 -> 0 | E165: =B!$AN$1816 -> 0
A166: 1701007 | B166: Ecocardiograma Doppler, con registro (incluye cód.17.01.008) | C166: =B!$D$1817 -> 0 | D166: =B!$F$1817 -> 0 | E166: =B!$AN$1817 -> 0
A167: 1701045 | B167: Ecocardiograma Doppler color | C167: =B!$D$1818 -> 0 | D167: =B!$F$1818 -> 0 | E167: =B!$AN$1818 -> 0
A168: 1701008 | B168: Ecocardiograma bidimensional (incluye registro modo M, papel fotosensible y fotografía), en adultos o niños (proc. aut.) | C168: =B!$D$1819 -> 0 | D168: =B!$F$1819 -> 0 | E168: =B!$AN$1819 -> 0
A169: 1701010 | B169: Sondeo cardíaco derecho c/s termodilución, en adultos o niños | C169: =B!$D$1820 -> 0 | D169: =B!$F$1820 -> 0 | E169: =B!$AN$1820 -> 0
A170: 1701011 | B170: Sondeo cardíaco izquierdo y derecho, en adultos o niños | C170: =B!$D$1821 -> 0 | D170: =B!$F$1821 -> 0 | E170: =B!$AN$1821 -> 0
A171: 1701012 | B171: Sondeo cardíaco izquierdo, en adultos o niños | C171: =B!$D$1822 -> 0 | D171: =B!$F$1822 -> 0 | E171: =B!$AN$1822 -> 0
A172: 1701019 | B172: Cinecoronariografía derecha y/o izquierda (incluye sondeo cardíaco izq. y ventriculografía izq.) | C172: =B!$D$1823 -> 0 | D172: =B!$F$1823 -> 0 | E172: =B!$AN$1823 -> 0
A173: 1701020 | B173: Ventriculografía derecha, en adultos o niños (incl. proc. rad. y sondeo cardíaco derecho) | C173: =B!$D$1824 -> 0 | D173: =B!$F$1824 -> 0 | E173: =B!$AN$1824 -> 0
A174: 1701021 | B174: Ventriculografía izquierda, en adultos o niños (incl. proc. rad. y sondeo cardíaco izquierdo) | C174: =B!$D$1825 -> 0 | D174: =B!$F$1825 -> 0 | E174: =B!$AN$1825 -> 0
A175: 1701022 | B175: Aortografía, en adultos o niños (Incluye proc. rad.) | C175: =B!$D$1826 -> 0 | D175: =B!$F$1826 -> 0 | E175: =B!$AN$1826 -> 0
A176: 1701023 | B176: Arteriografía de extremidades, en adultos o niños (incluye proc. rad.) | C176: =B!$D$1827 -> 0 | D176: =B!$F$1827 -> 0 | E176: =B!$AN$1827 -> 0
A177: 1701024 | B177: Arteriografía selectiva o superselectiva (pulmonar, renal, tronco celíaco, etc) en adultos o niños (incl. proc. rad.) | C177: =B!$D$1828 -> 0 | D177: =B!$F$1828 -> 0 | E177: =B!$AN$1828 -> 0
A178: 1701131 | B178: Angioplastía Intraluminal coronaria uno o mult. vasos(incl. proc. rad; balón, rotablator, Stent o similar) | C178: =B!$D$1829 -> 0 | D178: =B!$F$1829 -> 0 | E178: =B!$AN$1829 -> 0
A179: 1701132 | B179: Angioplastía Intraluminal periférica (incluye proc. rad., balón, Stent o similar) | C179: =B!$D$1830 -> 0 | D179: =B!$F$1830 -> 0 | E179: =B!$AN$1830 -> 0
A180: 1701043 | B180: Angioplastía de coartación aórtica (incl. proc. rad.) (proc. completo) | C180: =B!$D$1831 -> 0 | D180: =B!$F$1831 -> 0 | E180: =B!$AN$1831 -> 0
A181: 1701144 | B181: Angioplastía de arteria pulmonar o vena cava en niños (incluye proc. rad., balón, Stent o similar) | C181: =B!$D$1832 -> 0 | D181: =B!$F$1832 -> 0 | E181: =B!$AN$1832 -> 0
A182: 1701033 | B182: Biopsia endomiocárdica (proc. completo) | C182: =B!$D$1833 -> 0 | D182: =B!$F$1833 -> 0 | E182: =B!$AN$1833 -> 0
A183: 1701038 | B183: Septostomía de Rashkind | C183: =B!$D$1834 -> 0 | D183: =B!$F$1834 -> 0 | E183: =B!$AN$1834 -> 0
A184: 1701035 | B184: Colocación de sonda marcapaso transitorio (proc. completo) | C184: =B!$D$1835 -> 0 | D184: =B!$F$1835 -> 0 | E184: =B!$AN$1835 -> 0
A185: 1701141 | B185: Valvuloplastía mitral o tricúspide (incl. proc. radiológico, incluye balón) | C185: =B!$D$1836 -> 0 | D185: =B!$F$1836 -> 0 | E185: =B!$AN$1836 -> 0
A186: 1701142 | B186: Valvuloplastía aórtica y pulmonar (incl. proc. radiológico, incluye balón) | C186: =B!$D$1837 -> 0 | D186: =B!$F$1837 -> 0 | E186: =B!$AN$1837 -> 0
A187: 1801001 | B187: Gastroduodenoscopía (incluye esofagoscopía) | C187: =B!$D$2058 -> 0 | D187: =B!$F$2058 -> 0 | E187: =B!$AN$2058 -> 0
A188: 1801003 | B188: Yeyuno-ileoscopía (incluye esofago-gastro-duodenoscopía) | C188: =B!$D$2059 -> 0 | D188: =B!$F$2059 -> 0 | E188: =B!$AN$2059 -> 0
A189: 1801006 | B189: Colonoscopía larga (incluye sigmoidoscopía y ....) | C189: =B!$D$2060 -> 0 | D189: =B!$F$2060 -> 0 | E189: =B!$AN$2060 -> 0
A190: 1401001 | B190: Punción evacuadora de quiste tiroídeo c/s toma de muestra, c/s inyección de medicamentos | C190: =B!$D$1527 -> 0 | D190: =B!$F$1527 -> 0 | E190: =B!$AN$1527 -> 0
A191: 1101113 | B191: Angiografía cerebral digital por cateterización femoral (incluye proc. Radiológico, medio de contraste e insumos) | C191: =B!$D$1116 -> 0 | D191: =B!$F$1116 -> 0 | E191: =B!$AN$1116 -> 0
A192: 1101140 | B192: Esclerosis Múltiple Remitente Recurrente, Tratamiento médico farmacológico Anual (incluye inmunomoduladores) | C192: =B!$D$1117 -> 0 | D192: =B!$F$1117 -> 0 | E192: =B!$AN$1117 -> 0
A193: 1101141 | B193: Esclerosis Múltiple Remitente Recurrente, Tratamiento rehabilitación | C193: =B!$D$1118 -> 0 | D193: =B!$F$1118 -> 0 | E193: =B!$AN$1118 -> 0
A194: 1101142 | B194: Esclerosis Múltiple Remitente Recurrente, Tratamiento Brote | C194: =B!$D$1119 -> 0 | D194: =B!$F$1119 -> 0 | E194: =B!$AN$1119 -> 0
B195: SUB-TOTAL FACTURACION SECCION G | C195: =SUM(C161:C194) -> 0 | D195: =SUM(D161:D194) -> 0 | E195: =SUM(E161:E194) -> 0
A196: SECCIÓN H:PROGRAMA NACIONAL DE DROGAS ANTINEOPLASICAS P.N.D.A. (SOLO SERVICIOS DE SALUD ACREDITADOS)
A197: CODIGOS | C197: TOTAL PRODUCCIÓN | D197: TOTAL BENEFICIARIOS MAI | E197: PAGO POR PRESTACIONES ($)
B198: TUMORES DEL ADULTO | C198: =SUM(C199:C212) -> 0 | D198: =SUM(D199:D212) -> 0 | E198: =SUM(E199:E212) -> 0
A199: 3002001 | B199: Linfoma de Hodgkin | C199: =B!$D$2858 -> 0 | D199: =B!$F$2858 -> 0 | E199: =B!$AN$2858 -> 0
A200: 3002002 | B200: Linfoma No Hodgkin no agresivo | C200: =B!$D$2859 -> 0 | D200: =B!$F$2859 -> 0 | E200: =B!$AN$2859 -> 0
A201: 3002003 | B201: Linfoma No Hodgkin intermedio | C201: =B!$D$2860 -> 0 | D201: =B!$F$2860 -> 0 | E201: =B!$AN$2860 -> 0
... 301 more rows

Sheet Control
B2: HOJA | C2: SECCION | D2: Nº Errores
B3: NOMBRE | C3: Código comuna | D3: =+NOMBRE!AF2 -> 1
B4: NOMBRE | C4: Código establecimiento/estrategia | D4: =+NOMBRE!AF3 -> 1
B5: NOMBRE | C5: Tipo establecimiento/estrategia | D5: =+NOMBRE!AF4 -> 1
B6: NOMBRE | C6: Dependencia | D6: =+NOMBRE!AF5 -> 1
B7: NOMBRE | C7: Código Mes | D7: =+NOMBRE!AF6 -> 1
B8: B17 | C8: SECCIÓN E: INTERVENCIONES QUIRÚRGICAS POR TIPO DE INTERVENCIÓN | D8: =SUM('B17'!AB404:AB407) -> 0
B9: B17 | C9: SECCIÓN L: OTRAS ATENCIONES A PACIENTES AMBULATORIOS | D9: =SUM('B17'!AB469:AB471) -> 0
B10: B17 | C10: SECCIÓN N: OTROS TRASLADOS DE PACIENTES | D10: =SUM('B17'!AB474:AB476) -> 0
C11: TOTAL ERRORES | D11: =SUM(D3:D10) -> 5
B15: ¿Nombre vacío?
B16: =ISBLANK(NOMBRE!B2) -> TRUE
D82: =SUM(D3:D7) -> 5

Sheet MACROS
A1: Hoja de Macros y Utilidades
A2: =CONCATENATE("ESTABLECIMIENTO/ESTRATEGIA: ",NOMBRE!B3," - ","( ",NOMBRE!C3,NOMBRE!D3,NOMBRE!E3,NOMBRE!F3,NOMBRE!G3,NOMBRE!H3,NOMBRE!I3," )") -> ESTABLECIMIENTO/ESTRATEGIA: - ( Falta Cód. Est. )
B5: CREA UNA COPIA DEL ARCHIVO (TRANFORMA HOJAS A VALORES) A ESTE NUEVO ARCHIVO DEBERÁ ASIGNARLE UN NOMBRE
B6: Contraseña para copia del archivo :DEIS
B7: =IF(Control!D11>0,"REVISE LA HOJA CONTROL, EXISTEN ERRORES","") -> REVISE LA HOJA CONTROL, EXISTEN ERRORES
